bitfinex-derivatives/quotes_ETHF0:USTF0_20241102
["timestamp","ask_amount","ask_price","bid_price","bid_amount"]
[1730558387958,0.28201,2482.8,2482.7,1.17795541]
[1730558388264,0.28201,2482.8,2482.7,2.22827732]
[1730558388861,0.28201,2482.8,2482.7,2.51029732]
[1730558389062,0.28201,2482.8,2482.7,1.71077468]
[1730558389265,0.28201,2482.8,2482.7,1.71045255]
[1730558390365,0.28201,2482.8,2482.7,0.66013064]
[1730558390561,0.28201,2482.8,2482.7,1.19311556]
[1730558390764,0.28201,2482.8,2482.7,1.71056448]
[1730558391368,0.28201,2482.8,2482.7,0.66018225]
[1730558391767,0.28201,2482.8,2482.7,1.71103749]
[1730558392365,0.28201,2482.8,2482.7,0.66018225]
[1730558392559,0.28201,2482.8,2482.7,0.94220225]
[1730558392761,4.0802,2483.1,2482.7,7.82987533]
[1730558392967,4.0802,2483.1,2482.9,1.33327138]
[1730558392968,0.28199,2483.0,2482.9,1.33327138]
[1730558393168,0.28199,2483.0,2482.9,1.5687303]
[1730558393364,0.28199,2483.0,2482.9,0.51744892]
[1730558393565,0.28199,2483.0,2482.9,0.79943892]
[1730558393766,0.28199,2483.0,2482.9,1.56844345]
[1730558394068,0.28199,2483.0,2482.9,1.85043345]
[1730558394473,0.28199,2483.0,2482.9,0.79943892]
[1730558395067,0.28199,2483.0,2482.9,1.5683724]
[1730558395474,0.28199,2483.0,2482.9,1.56857846]
[1730558395772,0.27089,2483.0,2482.9,1.56857846]
[1730558395973,0.25979,2483.0,2482.9,1.56857846]
[1730558398167,4.28699,2483.0,2482.9,1.56857846]
[1730558398663,4.28699,2483.0,2482.9,0.51765498]
[1730558399175,0.28199,2482.9,2482.7,0.28201]
[1730558399367,0.282,2482.9,2482.8,0.282]
[1730558399670,0.2709,2482.9,2482.8,2.12912036]
[1730558399974,2.03309,2483.3,2482.8,0.79993143]
[1730558400275,0.28198,2483.0,2482.9,0.51793143]
[1730558400480,0.28198,2483.1,2482.9,2.01390819]
[1730558400669,0.28198,2483.1,2483.0,1.26620143]
[1730558400985,10.79363,2483.4,2483.3,0.28194]
[1730558400986,0.28194,2483.4,2483.3,0.28194]
[1730558401679,0.28196,2483.2,2483.1,1.05137676]
[1730558401873,0.28197,2483.1,2483.0,1.51767676]
[1730558402069,0.28197,2483.1,2483.0,2.03514441]
[1730558402276,0.28197,2483.2,2483.1,0.28197]
[1730558402478,0.28197,2483.1,2483.0,1.79965676]
[1730558402671,0.28197,2483.2,2483.1,0.28197]
[1730558402880,0.28197,2483.2,2483.1,0.79951629]
[1730558403276,0.28197,2483.2,2483.1,0.51754629]
[1730558406480,0.28196,2483.3,2483.2,0.28196]
[1730558406779,0.28196,2483.3,2483.2,0.79979345]
[1730558407474,0.28196,2483.3,2483.2,0.51783345]
[1730558407979,0.70479,2483.6,2483.1,1.05137676]
[1730558408178,0.70482,2483.5,2482.9,2.44897676]
[1730558408487,0.70482,2483.5,2482.8,3.914]
[1730558408488,0.70491,2483.2,2482.8,4.25917676]
[1730558408681,0.28199,2482.9,2482.8,3.2078]
[1730558408978,2.05944,2483.1,2482.6,1.05137676]
[1730558408979,0.28202,2482.7,2482.6,1.05137676]
[1730558409176,3.91278,2483.0,2482.5,4.25917676]
[1730558409385,0.72953,2482.6,2482.5,3.2078]
[1730558409576,0.72953,2482.6,2482.5,3.72623003]
[1730558409875,0.67383,2482.6,2482.5,3.72623003]
[1730558410080,0.61813,2482.6,2482.5,4.77760679]
[1730558410671,0.61813,2482.6,2482.4,0.8953]
[1730558410672,4.3641,2482.6,2482.4,1.05137676]
[1730558410872,0.75014,2482.5,2482.4,1.05137676]
[1730558411075,0.4681,2482.5,2482.3,1.05137676]
[1730558411281,0.28205,2482.4,2482.3,1.05137676]
[1730558411473,0.28205,2482.4,2482.3,0.51817694]
[1730558411680,4.028,2482.4,2482.0,1.05137676]
[1730558411883,0.28208,2482.1,2482.0,1.05137676]
[1730558412179,0.2264,2482.0,2481.9,1.05137676]
[1730558412383,0.2264,2482.0,2481.9,1.56965119]
[1730558412582,0.1707,2482.0,2481.9,1.56965119]
[1730558413482,0.1707,2482.0,2481.9,0.51827443]
[1730558413884,0.1707,2482.0,2481.9,1.56965119]
[1730558414183,0.1707,2482.0,2481.9,0.51827443]
[1730558414379,0.28212,2481.8,2481.7,4.25917676]
[1730558414585,0.28212,2481.8,2481.7,3.72583836]
[1730558414785,0.8902,2481.9,2481.7,3.72584375]
[1730558414982,0.28212,2481.8,2481.7,3.2078]
[1730558415179,0.25422,2481.8,2481.7,3.2078]
[1730558415387,0.28213,2481.7,2481.6,3.57229308]
[1730558415590,0.28213,2481.7,2481.6,4.09022332]
[1730558415884,0.28213,2481.7,2481.6,5.14160008]
[1730558416282,0.28213,2481.7,2481.6,4.09022332]
[1730558416478,0.28215,2481.6,2481.5,1.05137676]
[1730558416680,0.28215,2481.5,2481.4,1.49537676]
[1730558416880,1.5955,2481.9,2481.3,0.4627]
[1730558416881,3.2078,2481.7,2481.3,0.4627]
[1730558417185,0.19386,2481.4,2481.3,0.4627]
[1730558417883,3.2078,2481.7,2481.1,5.08356984]
[1730558418281,3.2078,2481.7,2481.1,5.36575984]
[1730558418282,0.28217,2481.4,2481.1,5.36575984]
[1730558418478,0.28216,2481.5,2481.2,0.28218]
[1730558418691,0.28217,2481.4,2481.2,0.28218]
[1730558418884,0.28217,2481.4,2481.1,5.08356984]
[1730558419186,0.28217,2481.4,2481.1,5.36575984]
[1730558419386,0.28217,2481.4,2481.1,4.31438308]
[1730558419585,0.28217,2481.4,2481.1,4.03219308]
[1730558419792,0.28217,2481.4,2481.2,0.28218]
[1730558420086,0.28215,2481.6,2481.4,0.28216]
[1730558420286,0.466,2481.9,2481.5,4.06599308]
[1730558420485,0.28212,2481.9,2481.6,0.28213]
[1730558420685,0.28212,2481.8,2481.6,0.28213]
[1730558421186,14.00143,2482.0,2481.5,4.06599308]
[1730558421187,0.28213,2481.7,2481.5,4.34814308]
[1730558421390,0.28212,2481.8,2481.6,0.28214]
[1730558421784,14.00143,2482.0,2481.5,4.34814308]
[1730558421983,0.28214,2481.6,2481.5,0.9243]
[1730558422788,0.28214,2481.6,2481.1,1.05137676]
[1730558422789,7.2374,2481.6,2481.1,1.05137676]
[1730558422985,0.4677,2481.5,2480.8,1.18363]
[1730558423193,1.17311,2481.5,2480.8,0.9014]
[1730558423384,0.28221,2481.0,2480.8,1.18363]
[1730558423690,1.17311,2481.5,2480.8,0.9014]
[1730558423691,0.70544,2481.4,2480.8,0.9014]
[1730558423885,0.28219,2481.2,2481.0,0.2822]
[1730558424092,0.4677,2481.5,2480.8,4.04309308]
[1730558424093,3.2078,2481.6,2481.1,3.2078]
[1730558424286,0.28216,2481.5,2481.3,0.28217]
[1730558424483,0.28216,2481.5,2481.3,0.73287]
[1730558425189,0.28216,2481.5,2481.3,0.4507]
[1730558425389,0.4677,2481.8,2481.3,0.4507]
[1730558425390,0.28216,2481.4,2481.3,0.4507]
[1730558426894,4.0304,2481.4,2481.1,3.2078]
[1730558427094,0.28219,2481.2,2481.1,3.2078]
[1730558427393,0.43119,2481.3,2481.1,3.2078]
[1730558427894,0.28219,2481.2,2481.1,3.2078]
[1730558428390,0.28222,2480.9,2480.8,0.4533]
[1730558430800,0.28221,2481.0,2480.9,0.28222]
[1730558431498,0.28221,2481.0,2480.8,0.73552]
[1730558431693,0.28221,2481.0,2480.9,0.28222]
[1730558432495,0.28221,2481.0,2480.8,0.73552]
[1730558432792,4.28792308,2481.4,2480.8,0.73552]
[1730558433193,0.28222,2481.0,2480.8,0.73552]
[1730558433392,0.28222,2480.9,2480.8,0.4533]
[1730558433796,2e-05,2480.9,2480.8,0.4533]
[1730558433997,0.28224,2480.9,2480.8,0.4533]
[1730558434200,0.4658,2481.1,2480.8,0.4533]
[1730558434387,2e-05,2480.9,2480.8,0.4533]
[1730558434597,0.28224,2480.9,2480.8,0.4533]
[1730558434997,0.4408,2481.0,2480.8,0.4533]
[1730558435300,0.4408,2481.0,2480.7,3.2078]
[1730558435701,0.28223,2480.8,2480.7,3.2078]
[1730558435997,7.87846308,2480.9,2480.4,3.2078]
[1730558436196,0.28226,2480.6,2480.5,0.4698]
[1730558436391,0.22656,2480.6,2480.5,0.4698]
[1730558437298,4.25776,2480.6,2480.5,0.4698]
[1730558440599,0.22656,2480.6,2480.5,0.4698]
[1730558440901,0.22656,2480.6,2480.5,0.75207]
[1730558441094,0.22656,2480.6,2480.5,0.4698]
[1730558441703,0.28225,2480.7,2480.5,0.75206]
[1730558441904,3.14169308,2480.9,2480.6,0.4471]
[1730558442107,0.28224,2480.8,2480.6,0.72935]
[1730558442307,0.28224,2480.7,2480.6,0.72935]
[1730558442700,0.28224,2480.7,2480.6,0.4471]
[1730558443000,0.28224,2480.7,2480.6,0.72936]
[1730558443207,0.28224,2480.7,2480.6,0.4471]
[1730558445714,0.28224,2480.7,2480.4,0.73267]
[1730558445715,0.28227,2480.5,2480.4,0.4504]
[1730558446015,0.28227,2480.5,2480.3,3.2078]
[1730558446016,0.22318,2480.4,2480.3,3.2078]
[1730558446396,0.16408,2480.4,2480.3,3.2078]
[1730558446908,0.8845,2480.6,2480.3,3.2078]
[1730558447314,0.28228,2480.4,2480.3,3.2078]
[1730558448409,0.8845,2480.6,2480.2,0.4272]
[1730558448601,0.28229,2480.3,2480.2,0.4272]
[1730558449610,0.28234,2479.9,2479.8,0.4526]
[1730558450015,4.25414,2479.9,2479.8,0.4526]
[1730558450207,0.22134,2479.9,2479.8,0.4526]
[1730558451609,4.25414,2479.9,2479.8,0.4526]
[1730558451809,4.25414,2479.9,2479.7,0.4402]
[1730558451810,0.28235,2479.8,2479.7,0.4402]
[1730558452217,0.28237,2479.6,2479.5,0.4649]
[1730558455006,0.4778,2479.7,2479.3,3.2078]
[1730558455214,0.28239,2479.4,2479.3,3.2078]
[1730558455612,0.18239,2479.4,2479.3,3.2078]
[1730558458814,3.14169308,2479.6,2479.0,1.96486768]
[1730558458815,3.14169308,2479.6,2479.0,5.17266768]
[1730558459115,0.28238,2479.5,2479.4,0.28239]
[1730558459318,0.28237,2479.6,2479.5,0.28238]
[1730558459515,3.58819308,2479.8,2479.1,1.04736768]
[1730558459725,0.28239,2479.5,2479.3,0.2824]
[1730558460021,0.28239,2479.4,2479.3,0.2824]
[1730558460316,0.28241,2479.3,2479.1,1.04736768]
[1730558460521,0.28241,2479.3,2479.1,0.28242]
[1730558460820,0.28243,2479.1,2479.0,4.69646768]
[1730558461018,3.14169308,2479.3,2479.0,4.69646768]
[1730558461019,0.28243,2479.2,2479.0,3.93153]
[1730558461208,0.15143,2479.1,2479.0,3.6491]
[1730558461516,3.14169308,2479.3,2479.0,3.6491]
[1730558461711,3.42412308,2479.1,2479.0,3.2078]
[1730558461921,3.42412308,2479.1,2478.7,1.85575903]
[1730558461922,7.17529308,2479.1,2478.7,1.04736768]
[1730558462216,7.17529308,2479.1,2478.5,0.4268]
[1730558462217,0.28248,2478.6,2478.5,0.4268]
[1730558462417,3.42417308,2478.6,2478.5,0.4268]
[1730558462610,3.14167308,2478.6,2478.5,0.4268]
[1730558462813,3.42415308,2478.6,2478.5,0.4268]
[1730558463012,3.42415308,2478.6,2478.2,0.28252]
[1730558463013,3.14167308,2478.6,2478.2,0.28252]
[1730558463218,3.14167308,2478.6,2478.2,0.4319]
[1730558463219,3.42421308,2478.3,2478.2,0.4319]
[1730558463424,3.14169308,2478.3,2477.7,1.04736768]
[1730558463716,3.14169308,2477.9,2477.7,0.4319]
[1730558463920,0.28257,2477.8,2477.7,0.4319]
[1730558464221,0.21677,2477.8,2477.7,0.4319]
[1730558464522,0.28259,2477.7,2477.6,3.2078]
[1730558464719,0.28258,2477.8,2477.6,3.49039]
[1730558465024,0.28257,2477.8,2477.6,3.2078]
[1730558465209,3.14169308,2478.1,2478.0,0.28255]
[1730558465411,17.14312308,2478.4,2478.0,3.2078]
[1730558465718,0.28254,2478.1,2478.0,3.2078]
[1730558466020,0.27984,2478.1,2478.0,3.2078]
[1730558466220,0.28254,2478.1,2478.0,3.2078]
[1730558466414,3.14169308,2478.2,2478.0,3.2078]
[1730558466616,0.14814,2478.1,2478.0,3.2078]
[1730558467217,4.18334,2478.1,2478.0,3.2078]
[1730558468529,0.2826,2477.6,2477.5,3.2078]
[1730558468723,3.42429308,2477.6,2477.5,3.2078]
[1730558469020,3.14169308,2477.6,2477.5,3.2078]
[1730558469211,3.14169308,2477.6,2477.4,0.71452]
[1730558469212,0.28261,2477.5,2477.4,0.4319]
[1730558469714,0.4463,2478.0,2477.4,0.4319]
[1730558469715,3.14169308,2478.1,2477.4,7.6765]
[1730558469920,3.14169308,2478.3,2477.8,3.2078]
[1730558470115,3.14169308,2478.3,2477.9,0.4341]
[1730558470420,3.42424308,2478.1,2478.0,0.4675]
[1730558470619,3.42424308,2478.1,2477.5,4.1598]
[1730558470620,3.14169308,2478.1,2477.6,0.4778]
[1730558470817,3.14169308,2478.3,2477.6,1.3724]
[1730558471026,3.14169308,2478.3,2478.2,0.28253]
[1730558471216,3.14169308,2478.3,2478.2,3.49033]
[1730558472723,3.42421308,2478.3,2478.2,3.2078]
[1730558473327,7.45941308,2478.3,2478.2,3.2078]
[1730558473624,7.45941308,2478.3,2477.6,2.3244]
[1730558473625,0.28259,2477.7,2477.6,3.6753]
[1730558473924,3.42428308,2477.7,2477.6,3.6753]
[1730558474130,0.28258,2477.8,2477.6,3.9579]
[1730558475124,3.14169308,2478.1,2477.6,0.4675]
[1730558475430,0.28258,2477.8,2477.6,0.75009]
[1730558476130,3.14169308,2478.1,2477.6,0.75009]
[1730558476430,3.42428308,2477.7,2477.6,0.4675]
[1730558476932,3.42428308,2477.7,2477.6,0.7501]
[1730558477229,3.42428308,2477.7,2477.6,0.4675]
[1730558478131,3.14169308,2477.9,2477.6,0.4675]
[1730558478334,3.14169308,2477.9,2477.7,0.28259]
[1730558478335,0.28258,2477.8,2477.7,0.28259]
[1730558478627,0.28258,2477.8,2477.6,0.75009]
[1730558479131,0.28259,2477.7,2477.6,0.7501]
[1730558479325,0.28259,2477.7,2477.6,0.4675]
[1730558479527,3.14169308,2477.9,2477.6,0.4675]
[1730558479722,0.28258,2477.8,2477.7,0.28259]
[1730558479932,0.28258,2477.8,2477.7,0.73219]
[1730558480126,0.28258,2477.8,2477.7,0.4496]
[1730558480825,3.14169308,2477.9,2477.8,0.28257]
[1730558481028,3.14169308,2478.2,2477.7,0.9162]
[1730558481230,3.42423308,2478.2,2477.8,3.2078]
[1730558481432,3.42423308,2478.2,2478.0,0.28255]
[1730558481728,3.14169308,2478.4,2478.1,0.4501]
[1730558482032,0.28249,2478.6,2478.2,0.4817]
[1730558482225,0.28249,2478.6,2478.5,0.28249]
[1730558482625,0.28249,2478.6,2478.3,3.2078]
[1730558482626,3.14169308,2478.7,2478.3,3.2078]
[1730558482830,3.14169308,2479.2,2478.6,3.2078]
[1730558483031,3.14169308,2479.2,2479.1,0.28243]
[1730558483032,3.42411308,2479.2,2479.1,0.28243]
[1730558483331,0.4474,2479.5,2479.1,0.28242]
[1730558483332,0.28241,2479.3,2479.1,0.28242]
[1730558483731,3.14169308,2479.4,2478.9,3.2078]
[1730558483931,3.14169308,2479.6,2478.9,3.2078]
[1730558484137,0.4474,2479.9,2479.1,0.28242]
[1730558484138,0.28241,2479.3,2479.1,0.28242]
[1730558484331,0.28241,2479.3,2479.1,3.49022]
[1730558484539,3.14169308,2479.4,2479.3,0.2824]
[1730558485040,3.14169308,2479.6,2479.5,0.28238]
[1730558485230,0.28234,2479.9,2479.4,3.2078]
[1730558485231,3.14169308,2479.9,2479.4,3.2078]
[1730558485435,3.14169308,2479.9,2479.5,0.4594]
[1730558485642,3.42403308,2479.9,2479.7,0.28236]
[1730558486136,11.82036695,2480.5,2479.7,3.2078]
[1730558486137,3.14169308,2480.4,2479.7,3.2078]
[1730558486336,3.42395308,2480.6,2480.3,0.28229]
[1730558486531,3.42395308,2480.6,2479.7,1.14548]
[1730558486532,0.28226,2480.6,2480.2,3.2078]
[1730558486735,0.28228,2480.5,2480.2,3.4901]
[1730558487038,3.87274452,2480.7,2480.2,3.2078]
[1730558487237,4.15499452,2480.7,2480.4,0.28227]
[1730558487438,4.15499452,2480.7,2480.2,3.2078]
[1730558487439,3.87274452,2480.7,2480.2,3.2078]
[1730558487636,4.0889,2481.0,2480.3,0.4545]
[1730558487637,7.08054452,2481.0,2480.3,0.4545]
[1730558487835,0.28221,2481.1,2480.4,3.2078]
[1730558488140,3.87274452,2481.3,2480.7,3.2078]
[1730558488340,0.28223,2480.8,2480.7,3.2078]
[1730558488538,0.28223,2480.8,2480.5,3.2078]
[1730558488735,0.28226,2480.6,2480.5,3.2078]
[1730558489234,4.03116,2480.6,2480.5,3.2078]
[1730558489446,0.28226,2480.6,2480.5,3.2078]
[1730558489741,4.0312,2480.6,2480.5,3.2078]
[1730558489933,4.31346,2480.6,2480.5,3.2078]
[1730558490135,4.0312,2480.6,2480.2,3.2078]
[1730558490334,0.28229,2480.3,2480.2,3.2078]
[1730558490734,4.31429,2480.3,2480.2,3.2078]
[1730558491347,4.032,2480.3,2479.6,4.1588]
[1730558491640,0.28236,2479.8,2479.6,4.1588]
[1730558492137,3.87274452,2480.1,2479.3,0.9022]
[1730558492332,0.28237,2479.6,2479.3,1.1846]
[1730558492534,4.31254452,2480.1,2479.3,0.9022]
[1730558492736,4.31254452,2480.1,2479.4,0.28239]
[1730558492737,0.28236,2479.7,2479.4,0.28239]
[1730558492935,4.31254452,2480.1,2479.3,0.9022]
[1730558493339,0.28239,2479.5,2479.3,0.9022]
[1730558494144,0.28237,2479.7,2479.4,0.28239]
[1730558494745,0.28237,2479.6,2479.3,1.1846]
[1730558495344,0.28237,2479.6,2479.4,0.28239]
[1730558495643,4.31254452,2480.1,2479.4,4.0328]
[1730558495850,11.24613,2480.3,2479.7,0.28236]
[1730558496146,0.4525,2480.3,2479.5,3.2078]
[1730558496346,0.28237,2479.7,2479.5,3.2078]
[1730558496844,0.28235,2479.8,2479.5,7.52298]
[1730558497046,0.28235,2479.8,2479.5,3.49018]
[1730558497741,0.28236,2479.7,2479.5,3.49018]
[1730558497944,0.28236,2479.7,2479.5,3.2078]
[1730558498135,0.28236,2479.7,2479.5,7.2406]
[1730558498446,0.28236,2479.7,2479.5,7.52298]
[1730558498746,0.28236,2479.8,2479.6,4.0328]
[1730558498935,3.87274452,2480.1,2479.5,3.49018]
[1730558499340,0.28235,2479.8,2479.6,0.28237]
[1730558499540,0.28236,2479.8,2479.5,3.49018]
[1730558500035,3.87274452,2480.1,2479.5,7.2406]
[1730558500249,0.28233,2480.0,2479.7,0.28235]
[1730558500743,0.28234,2479.9,2479.6,0.28236]
[1730558501140,3.87274452,2480.4,2479.5,3.2078]
[1730558501442,0.28232,2480.0,2479.8,3.49014]
[1730558501635,3.87274452,2480.4,2479.9,0.4451]
[1730558501847,0.28232,2480.1,2479.9,0.72743]
[1730558502243,0.28228,2480.4,2480.2,0.2823]
[1730558502448,4.80764452,2480.7,2480.2,0.28229]
[1730558502449,0.4645,2480.7,2480.2,0.28229]
[1730558502750,0.28229,2480.3,2480.1,3.49011]
[1730558502952,4.33724452,2480.7,2480.1,3.2078]
[1730558503250,0.28236,2479.7,2479.6,4.1588]
[1730558503750,0.28236,2479.7,2479.6,8.1916]
[1730558504147,0.28236,2479.7,2479.6,7.2406]
[1730558505748,0.28236,2479.7,2479.6,3.2078]
[1730558506349,0.4622,2480.1,2479.6,3.49016]
[1730558506350,0.28235,2479.9,2479.6,3.49016]
[1730558506649,0.4622,2480.1,2479.7,0.28235]
[1730558506850,0.28235,2479.8,2479.7,0.28235]
[1730558507053,0.28235,2479.8,2479.6,3.49016]
[1730558507445,0.28236,2479.7,2479.6,3.2078]
[1730558507951,0.28236,2479.7,2479.6,7.2406]
[1730558508253,0.28236,2479.7,2479.6,3.2078]
[1730558508455,0.22666,2479.7,2479.6,3.2078]
[1730558509953,0.4622,2480.1,2479.6,7.2406]
[1730558510158,0.28233,2480.0,2479.8,0.28234]
[1730558510452,0.28235,2479.8,2479.7,0.71995]
[1730558511550,0.28235,2479.8,2479.7,0.4376]
[1730558511744,0.70579,2480.1,2479.7,0.4376]
[1730558512055,0.28235,2479.8,2479.7,0.4376]
[1730558513053,7.78630452,2480.2,2479.6,3.2078]
[1730558513054,0.28236,2479.7,2479.6,3.2078]
[1730558513552,4.0328,2479.7,2479.2,3.6551]
[1730558513850,0.2824,2479.3,2479.2,3.93751]
[1730558514249,0.2824,2479.3,2479.2,3.6551]
[1730558514547,0.2824,2479.3,2479.2,3.93751]
[1730558514746,4.77584452,2479.9,2479.2,7.6887]
[1730558514747,5.04840452,2479.9,2479.2,7.6887]
[1730558514956,0.2824,2479.4,2479.3,0.2824]
[1730558515255,0.2824,2479.3,2479.2,3.93751]
[1730558515554,0.2824,2479.3,2479.2,3.2078]
[1730558517455,4.80894452,2479.9,2479.3,0.2824]
[1730558517456,0.2824,2479.4,2479.3,0.2824]
[1730558517751,0.7059,2479.8,2479.2,3.49021]
[1730558517953,0.2824,2479.3,2479.2,3.49021]
[1730558518457,0.2824,2479.3,2479.2,7.52381]
[1730558518855,0.2824,2479.3,2479.2,3.49021]
[1730558519953,0.2824,2479.3,2479.2,7.2414]
[1730558520159,0.2824,2479.4,2479.2,7.2414]
[1730558520458,0.2824,2479.4,2479.3,0.2824]
[1730558520957,3.14803341,2479.7,2479.2,3.2078]
[1730558520958,0.2824,2479.3,2479.2,3.49021]
[1730558521160,0.2824,2479.4,2479.3,0.2824]
[1730558521354,3.14803341,2479.7,2479.2,3.2078]
[1730558521554,0.2824,2479.4,2479.3,0.2824]
[1730558521858,0.28239,2479.5,2479.4,0.28239]
[1730558522354,11.49943,2480.1,2479.4,4.0328]
[1730558522559,11.49943,2480.1,2479.2,3.91383]
[1730558522560,0.28237,2479.7,2479.6,0.28237]
[1730558523056,10.79363,2480.1,2479.5,4.599]
[1730558523357,0.28233,2480.0,2479.9,0.28233]
[1730558524354,0.28231,2480.1,2480.0,0.28232]
[1730558524556,3.14803341,2480.4,2479.8,3.2078]
[1730558524759,0.28231,2480.2,2480.1,0.28231]
[1730558525057,0.9324,2480.5,2480.3,0.28228]
[1730558525058,0.28228,2480.5,2480.3,0.28228]
[1730558525453,3.14803341,2480.7,2480.2,0.9067]
[1730558525661,0.28228,2480.5,2480.3,0.28228]
[1730558525963,3.14803341,2480.7,2480.3,0.28228]
[1730558526161,0.28228,2480.4,2480.3,0.28228]
[1730558526357,3.14803341,2480.7,2480.2,0.9067]
[1730558526557,0.28229,2480.3,2480.2,1.18899]
[1730558526751,0.28229,2480.3,2480.2,0.9067]
[1730558527156,0.28229,2480.3,2480.2,4.9387]
[1730558527362,0.28229,2480.3,2480.2,6.78722913]
[1730558527665,0.28229,2480.4,2480.3,0.28229]
[1730558527864,0.28229,2480.4,2480.2,2.23635768]
[1730558528365,0.28229,2480.4,2480.3,1.5665019]
[1730558528759,0.28229,2480.4,2480.3,1.04736768]
[1730558529257,0.28229,2480.4,2480.3,1.56659806]
[1730558529461,0.28227,2480.5,2480.4,0.28228]
[1730558529764,3.14803341,2480.7,2480.3,1.04736768]
[1730558529964,3.43031341,2480.4,2480.3,1.04736768]
[1730558530363,0.28229,2480.3,2480.2,1.32966768]
[1730558530557,0.28229,2480.3,2480.2,1.84889293]
[1730558530757,0.28229,2480.3,2480.2,1.04736768]
[1730558531065,0.28229,2480.3,2480.2,1.56659222]
[1730558531566,0.28229,2480.3,2480.2,1.84889222]
[1730558531768,0.28229,2480.3,2480.2,1.56659222]
[1730558533166,0.28225,2480.7,2480.5,0.28226]
[1730558533361,4.08043341,2480.9,2480.5,0.28226]
[1730558533362,0.4707,2480.9,2480.5,1.05411111]
[1730558533560,3.2078,2481.0,2480.6,1.99591111]
[1730558533759,3.2078,2481.0,2480.9,0.28222]
[1730558533959,3.2078,2481.0,2480.7,1.57314834]
[1730558533960,0.2822,2481.1,2481.0,0.28221]
[1730558534170,3.14803341,2481.4,2480.8,1.05411111]
[1730558534466,3.14803341,2481.4,2480.9,0.28222]
[1730558534467,0.28221,2481.0,2480.9,0.28222]
[1730558534668,0.28221,2481.1,2480.9,0.28222]
[1730558535170,0.28221,2481.1,2480.9,0.28221]
[1730558535371,0.28218,2481.3,2480.9,0.28221]
[1730558535671,3.14803341,2481.4,2480.9,0.28221]
[1730558535672,0.28221,2481.1,2480.9,0.28221]
[1730558536673,0.28221,2481.0,2480.9,0.28221]
[1730558539186,3.14803341,2481.4,2480.7,3.2078]
[1730558539474,3.14803341,2480.8,2480.3,4.1568]
[1730558539772,0.28228,2480.4,2480.3,0.28229]
[1730558539971,0.28228,2480.4,2480.3,1.23129]
[1730558540268,3.14803341,2480.6,2480.1,1.98111111]
[1730558540469,0.2823,2480.2,2480.1,1.876]
[1730558540771,0.2823,2480.2,2480.1,2.15831]
[1730558540976,0.4787,2480.5,2480.2,0.2823]
[1730558541172,0.28227,2480.5,2480.3,0.28228]
[1730558541370,0.28227,2480.5,2480.4,0.28228]
[1730558541574,0.28227,2480.5,2480.3,0.28228]
[1730558541764,0.28227,2480.5,2480.1,1.876]
[1730558541765,0.28229,2480.3,2480.1,1.876]
[1730558541970,3.14803341,2480.6,2480.1,2.15831]
[1730558542171,0.2823,2480.3,2480.1,2.15831]
[1730558542375,0.2823,2480.2,2480.1,1.876]
[1730558542571,3.85369341,2480.6,2480.0,3.49012]
[1730558542771,0.28231,2480.1,2480.0,3.2078]
[1730558543271,7.06149341,2480.6,2480.0,3.2078]
[1730558543477,3.14803341,2480.6,2480.0,3.2078]
[1730558543675,0.28227,2480.5,2480.4,0.28228]
[1730558544275,0.28227,2480.5,2480.0,3.2078]
[1730558544572,0.28228,2480.4,2480.0,3.2078]
[1730558544777,0.28229,2480.3,2480.2,0.28229]
[1730558545372,3.14803341,2480.7,2480.2,4.032]
[1730558545573,0.28227,2480.5,2480.3,0.28228]
[1730558545768,3.14803341,2480.7,2480.3,0.28228]
[1730558545769,0.28228,2480.4,2480.3,0.28228]
[1730558545978,3.14803341,2480.7,2480.0,4.1568]
[1730558546172,0.28229,2480.4,2480.2,0.28229]
[1730558546373,3.14803341,2480.7,2480.2,0.28229]
[1730558546573,3.14803341,2480.7,2480.0,4.1568]
[1730558546777,3.14803341,2480.7,2480.4,0.28228]
[1730558546778,0.28227,2480.5,2480.4,0.28228]
[1730558546974,3.14803341,2481.1,2480.4,4.0312]
[1730558547179,0.28225,2480.7,2480.6,0.28225]
[1730558547375,0.28225,2480.7,2480.5,0.93]
[1730558547376,3.59063341,2481.1,2480.5,0.93]
[1730558547677,0.28224,2480.8,2480.7,0.28224]
[1730558548784,3.59063341,2481.1,2480.5,0.93]
[1730558549080,0.70553,2481.0,2480.5,1.21226]
[1730558549287,0.28225,2480.7,2480.5,1.21226]
[1730558549487,0.28225,2480.7,2480.6,0.28226]
[1730558549982,3.59063341,2481.1,2480.5,0.93]
[1730558550186,0.28224,2480.8,2480.7,0.28224]
[1730558550585,0.28221,2481.1,2481.0,0.28221]
[1730558550781,3.2078,2481.5,2480.9,3.2078]
[1730558550982,3.2078,2481.5,2481.4,0.28216]
[1730558550983,0.28216,2481.5,2481.4,0.28216]
[1730558551185,0.28215,2481.6,2481.5,0.28215]
[1730558551385,1.999942,2481.7,2481.2,3.2078]
[1730558551586,0.28218,2481.3,2481.2,3.2078]
[1730558551789,0.28218,2481.3,2481.2,3.48999]
[1730558551990,0.28218,2481.3,2481.2,3.2078]
[1730558552187,3.59023341,2481.6,2481.1,1.66439]
[1730558552188,0.28219,2481.2,2481.1,1.66439]
[1730558552385,3.59023341,2481.6,2481.2,0.28219]
[1730558552386,0.28218,2481.3,2481.2,0.28219]
[1730558552690,0.28218,2481.3,2481.2,3.48998]
[1730558553187,0.28218,2481.3,2481.2,3.2078]
[1730558553491,0.28218,2481.3,2481.1,1.3822]
[1730558553492,3.14803341,2481.4,2481.1,0.949]
[1730558553694,0.4396,2481.5,2481.1,1.23119]
[1730558553988,0.4396,2481.5,2481.1,0.949]
[1730558554292,0.28219,2481.2,2481.1,0.949]
[1730558554487,0.28219,2481.2,2481.1,1.2312]
[1730558554694,0.28219,2481.2,2481.1,0.949]